{"text_format":"3","workbook":"xlsx","n_sheets":1,"sheets":["PRICING SCHEDULE"],"not_rendered":{"images":1,"defined_names":2},"read":"whole","date_system":"1900"}

{"sheet":"PRICING SCHEDULE","index":0,"n_rows":52,"n_cols":17,"rows_kept":52,"merged":[[11,0,11,15],[13,3,13,5],[13,6,13,8],[13,9,13,11],[13,12,13,14],[48,1,51,1],[48,3,48,4],[50,3,50,4],[51,3,51,4]]}
[null,"SUPPLY CHAIN MANAGEMENT"]
[null,"Pricing schedule"]
["RFB No","RFB 2734 - 2023"]
["RFB Title","Procurement of a service provider to conduct background checks and verifications"]
["Bidder Name "]
[]
["1. INSTRUCTION FOR COMPLETING THE PRICING SCHEDULE"]
[]
["(a)  Bidder must complete/enter YELLOW cells only."]
["(b)  Unit and Line prices must be VAT EXCLUSIVE and in South African Rand (ZAR) currency."]
["(c)  The price must include all cost to deliver the goods or render the service, including all applicable taxes, duty fees, logistics/delivery, storage, labour, overtime and subsistance and travel."]
["(d)  Bid pricing will be evaluated based on the following model:\n      (i) All checks listed under item 1 (1.1 - 1.24) will be added in order to determine the total cost of a basket of checks and verifications. The total cost of the basket will have a weighting of 95% during evaluation.  \n      (ii) Item 2 (2.1 -2.2) will be added in order to determine the total cost of training and registration of a user on the AFISwitch platform and the cost of providing a SAGEM MorphoSmart MSO300 Scanner. The total cost for these items will have a weighting of 5% during evaluation. These items will not be procured regularly, or at all, and will therefore have a minor impact during evaluation of pricing.       "]
[]
[{"$nulls":3},"YEAR 1",null,null,"YEAR 2",null,null,"YEAR 3",null,null,"YEAR 4",null,null,"TOTAL"]
["Item No","Goods/Service description","Unit of measure","Qty ","Unit Price \n(Excl VAT)","Line Price Y1","Qty","Unit Price \n(Excl VAT)","Line Price Y2","Qty","Unit Price \n(Excl VAT)","Line Price Y3","Qty","Unit Price \n(Excl VAT)","Line Price Y4","Line Price Term \n(Excl VAT)","Price clarification comment (only complete if required to clarify or provide further detail about the quoted price) "]
[1,"Checks and verifications (Subtotal at 95% weighting)  ",{"$nulls":3},{"$f":"SUBTOTAL(9,F17:F40)*95%","v":0},null,null,{"$f":"SUBTOTAL(9,I17:I40)*95%","v":0},null,null,{"$f":"SUBTOTAL(9,L17:L40)*95%","v":0},null,null,{"$f":"SUBTOTAL(9,O17:O40)*95%","v":0},{"$f":"SUBTOTAL(9,P17:P40)*95%","v":0}]
["1.1","Criminal Record Check ","Per report ",1,0,{"$f":"D17*E17","v":0},1,0,{"$f":"G17*H17","v":0},1,0,{"$f":"J17*K17","v":0},1,0,{"$f":"M17*N17","v":0},{"$f":"SUM(F17,I17,L17,O17)","v":0}]
[1.2,"Criminal Record Check - through Agent network","Per appointment",1,0,{"$f":"D18*E18","v":0},1,0,{"$f":"G18*H18","v":0},1,0,{"$f":"J18*K18","v":0},1,0,{"$f":"M18*N18","v":0},{"$f":"SUM(F18,I18,L18,O18)","v":0}]
[1.3,"Credit Record Check: Experian (or alternative bureau report)","Per report ",1,0,{"$f":"D19*E19","v":0},1,0,{"$f":"G19*H19","v":0},1,0,{"$f":"J19*K19","v":0},1,0,{"$f":"M19*N19","v":0},{"$f":"SUM(F19,I19,L19,O19)","v":0}]
["1.4","Credit Record Checks: TransUnion (or alternative bureau report) ","Per report ",1,0,0,1,0,0,1,0,0,1,0,0,0]
["1.5","Credit Record Check: XDS (or alternative bureau report)","Per report ",1,0,0,1,0,0,1,0,0,1,0,0,0]
["1.6","Credit Record Checks: Combined Report ","Per report ",1,0,0,1,0,0,1,0,0,1,0,0,0]
["1.7","Identity verification ","Per report ",1,0,0,1,0,0,1,0,0,1,0,0,0]
["1.8","Qualification verification: Pre-1992 Matric ","Per report ",1,0,0,1,0,0,1,0,0,1,0,0,0]
[1.9,"Qualification verification: Post-1992 Matric ","Per report ",1,0,0,1,0,0,1,0,0,1,0,0,0]
[{"v":1.1,"d":"1.10"},"Qualification verification:  Tertiary ( RSA)","Per report ",1,0,0,1,0,0,1,0,0,1,0,0,0]
[1.11,"Qualification verification: Tertiary (International)  ","Per report ",1,0,0,1,0,0,1,0,0,1,0,0,0]
[1.12,"Qualification verification: Diplomas, Short courses and Certificates ","Per report ",1,0,0,1,0,0,1,0,0,1,0,0,0]
[1.13,"Driver’s Licence verification ","Per report ",1,0,0,1,0,0,1,0,0,1,0,0,0]
[1.14,"South African Fraud Prevention Service (SAFPS) Listing ","Per report ",1,0,0,1,0,0,1,0,0,1,0,0,0]
[1.15,"Permanent residency verification ","Per report ",1,0,0,1,0,0,1,0,0,1,0,0,0]
[1.16,"SAQA verification (verify that a certificate was issued by SAQA) ","Per report ",1,0,0,1,0,0,1,0,0,1,0,0,0]
[1.17,"PSIRA Registration ","Per report ",1,0,0,1,0,0,1,0,0,1,0,0,0]
[1.18,"Director scan ","Per report ",1,0,0,1,0,0,1,0,0,1,0,0,0]
[1.19,"CIPC Company search and report ","Per report ",1,0,0,1,0,0,1,0,0,1,0,0,0]
[{"v":1.2,"d":"1.20"},"Deeds search (Single Office )","Per report ",1,0,0,1,0,0,1,0,0,1,0,0,0]
[1.21,"Deeds search (Multiple Office) ","Per report ",1,0,0,1,0,0,1,0,0,1,0,0,0]
[1.22,"ACFE Report ","Per report ",1,0,0,1,0,0,1,0,0,1,0,0,0]
[1.23,"Vehicle ownership ","Per report ",1,0,0,1,0,0,1,0,0,1,0,0,0]
[1.24,"Social media report","Per report ",1,0,0,1,0,0,1,0,0,1,0,0,0]
[2,"Criminal Record Check - hardware and training (Subtotal at 5% weighting)",{"$nulls":3},{"$f":"SUBTOTAL(9, F42:F43)*5%","v":0},null,null,{"$f":"SUBTOTAL(9, I42:I43)*5%","v":0},null,null,{"$f":"SUBTOTAL(9, L42:L43)*5%","v":0},null,null,{"$f":"SUBTOTAL(9, O42:O43)*5%","v":0},{"$f":"SUBTOTAL(9, P42:P43)*5%","v":0}]
["2.1","Training and registration of users on AFISwitch","Per user",1,0,{"$f":"D42*E42","v":0},1,0,0,1,0,{"$f":"J42*K42","v":0},1,0,{"$f":"M42*N42","v":0},{"$f":"SUM(F42,I42,L42,O42)","v":0}]
["2.2","SAGEM MorphoSmart MSO300 Scanner - or similar","Per device",1,0,0,1,0,0,1,0,0,1,0,0,{"$f":"SUM(F43,I43,L43,O43)","v":0}]
[null,"TOTAL WEIGHTED BID PRICE PER BASKET OF CHECKS, HARDWARE AND TRAINING (EXCL VAT)",{"$nulls":3},{"$f":"SUM(F16,F41)","v":0},null,null,{"$f":"SUM(I16,I41)","v":0},null,null,{"$f":"SUM(L16,L41)","v":0},null,null,{"$f":"SUM(O16,O41)","v":0},{"$f":"SUM(P16,P41)","v":0}]
[null,"VAT (@15%)",{"$nulls":3},{"$f":"F44*0.15","v":0},null,null,{"$f":"I44*0.15","v":0},null,null,{"$f":"L44*0.15","v":0},null,null,{"$f":"O44*0.15","v":0},{"$f":"P44*0.15","v":0}]
[null,"TOTAL WEIGHTED BID PRICE PER BASKET OF CHECKS, HARDWARE AND TRAINING (INCL VAT)",{"$nulls":3},{"$f":"F44+F45","v":0},null,null,{"$f":"I44+I45","v":0},null,null,{"$f":"L44+L45","v":0},null,null,{"$f":"O44+O45","v":0},{"$f":"P44+P45","v":0}]
[]
[]
[null,"I, the bidder, confirm that the price(s) and rate(s) quoted cover all the goods and/or works specified in the bidding documents; that the price(s) or rate(s) cover all my obligations and I accept that any mistakes regarding price(s), rate(s) or calculations will be at my own risk.\n[Note: First convert to PDF, then add signature]"]
[null,null,"Name","Capacity"]
[]
[null,null,"Signature (above)","Date"]